fUST/lending_fUST_20250701
["ID","MTS","AMOUNT","RATE_DAILY","PERIOD"]
[368770028,1751356239669,-502.77,0.00018586,2]
[368770029,1751356239678,-460.0,0.00018586,2]
[368770030,1751356239688,-460.0,0.00018586,2]
[368770032,1751356239699,-460.0,0.00018586,2]
[368770033,1751356239711,-460.0,0.00018586,2]
[368770034,1751356239721,-460.0,0.00018586,2]
[368770035,1751356239731,-571.71,0.00018586,2]
[368770036,1751356239740,-460.0,0.00018586,2]
[368770037,1751356239751,-460.0,0.00018586,2]
[368770038,1751356239760,-460.0,0.00018586,2]
[368770039,1751356239770,-460.0,0.00018586,2]
[368770041,1751356239781,-460.0,0.00018586,2]
[368770042,1751356239791,-460.0,0.00018586,2]
[368770043,1751356239801,-460.0,0.00018586,2]
[368770044,1751356239811,-460.0,0.00018586,2]
[368770045,1751356239821,-460.0,0.00018586,2]
[368770046,1751356239831,-460.0,0.00018586,2]
[368770047,1751356239841,-405.20263966,0.00018586,2]
[368770048,1751356239851,-346.05,0.00018586,2]
[368770049,1751356239861,-491.9,0.00018586,2]
[368770051,1751356239871,-460.0,0.00018586,2]
[368770052,1751356239881,-460.0,0.00018586,2]
[368770053,1751356239891,-460.0,0.00018586,2]
[368770054,1751356239901,-460.0,0.00018586,2]
[368770055,1751356239910,-460.0,0.00018586,2]
[368770056,1751356239920,-460.0,0.00018586,2]
[368770057,1751356239929,-460.0,0.00018586,2]
[368770058,1751356239939,-460.0,0.00018587,2]
[368770059,1751356239948,-460.0,0.00018587,2]
[368770060,1751356239958,-460.0,0.00018587,2]
[368770061,1751356239968,-460.0,0.00018587,2]
[368770062,1751356239978,-460.0,0.00018587,2]
[368770063,1751356239988,-336.16883824,0.00018587,2]
[368770064,1751356239997,-460.0,0.00018587,2]
[368770065,1751356240007,-460.0,0.00018587,2]
[368770066,1751356240017,-460.0,0.00018587,2]
[368770067,1751356240027,-460.0,0.00018587,2]
[368770068,1751356240037,-460.0,0.00018587,2]
[368770069,1751356240046,-460.0,0.00018587,2]
[368770070,1751356240056,-460.0,0.00018587,2]
[368770071,1751356240065,-460.0,0.00018587,2]
[368770072,1751356240074,-460.0,0.00018587,2]
[368770073,1751356240084,-460.0,0.00018587,2]
[368770074,1751356240094,-460.0,0.00018587,2]
[368770075,1751356240105,-1199.61,0.00018587,2]
[368770076,1751356240114,-460.0,0.00018587,2]
[368770077,1751356240125,-460.0,0.00018587,2]
[368770078,1751356240134,-460.0,0.00018587,2]
[368770079,1751356240144,-460.0,0.00018587,2]
[368770080,1751356240154,-460.0,0.00018587,2]
[368770081,1751356240163,-460.0,0.00018587,2]
[368770082,1751356240173,-460.0,0.00018587,2]
[368770084,1751356240182,-460.0,0.00018587,2]
[368770085,1751356240191,-460.0,0.00018587,2]
[368770086,1751356240201,-460.0,0.00018587,2]
[368770087,1751356240210,-460.0,0.00018587,2]
[368770088,1751356240219,-499.43,0.00018587,2]
[368770089,1751356240229,-460.0,0.00018588,2]
[368770090,1751356240241,-209.78,0.00018588,2]
[368770091,1751356240252,-460.0,0.00018588,2]
[368770093,1751356240262,-1000.0,0.000186,2]
[368770094,1751356240271,-460.0,0.00018859,2]
[368770095,1751356240280,-460.0,0.00018859,2]
[368770096,1751356240290,-460.0,0.00018859,2]
[368770097,1751356240301,-460.0,0.00018859,2]
[368770098,1751356240310,-735.02,0.00018859,2]
[368770099,1751356240319,-460.0,0.00018859,2]
[368770101,1751356240329,-656.58,0.00018859,2]
[368770102,1751356240340,-460.0,0.00018859,2]
[368770103,1751356240350,-460.0,0.00018859,2]
[368770104,1751356240360,-1538.26,0.00018859,2]
[368770105,1751356240370,-478.66,0.00018859,2]
[368770106,1751356240380,-517.42,0.00018859,2]
[368770107,1751356240390,-460.0,0.00018859,2]
[368770109,1751356240400,-460.0,0.00018859,2]
[368770110,1751356240409,-460.0,0.0001886,2]
[368770111,1751356240418,-1088.23,0.0001886,2]
[368770112,1751356240428,-478.16,0.0001886,2]
[368770113,1751356240437,-460.0,0.0001886,2]
[368770114,1751356240447,-460.0,0.0001886,2]
[368770115,1751356240456,-460.0,0.0001886,2]
[368770117,1751356240466,-460.0,0.0001886,2]
[368770118,1751356240476,-460.0,0.0001886,2]
[368770119,1751356240485,-834.6,0.0001886,2]
[368770120,1751356240495,-265.40014138,0.0001886,2]
[368770121,1751356240504,-681.96,0.0001886,2]
[368770122,1751356240513,-880.67,0.0001886,2]
[368770123,1751356240523,-460.0,0.0001886,2]
[368770124,1751356240532,-460.0,0.0001886,2]
[368770126,1751356240542,-460.0,0.0001886,2]
[368770127,1751356240553,-460.0,0.0001886,2]
[368770128,1751356240562,-502.77,0.0001886,2]
[368770129,1751356240571,-287.76496417,0.0001886,2]
[368770130,1751356240581,-460.0,0.0001886,2]
[368770131,1751356240591,-402.55127568,0.0001886,2]
[368770132,1751356240600,-460.0,0.0001886,2]
[368770133,1751356240610,-460.0,0.0001886,2]
[368770134,1751356240619,-571.71,0.0001886,2]
[368770135,1751356240630,-460.0,0.0001886,2]
[368770136,1751356240639,-460.0,0.0001886,2]
[368770137,1751356240649,-460.0,0.0001886,2]
[368770138,1751356240658,-479.05,0.0001886,2]
[368770139,1751356240667,-460.0,0.0001886,2]
[368770140,1751356240677,-460.0,0.0001886,2]
[368770141,1751356240686,-460.0,0.0001886,2]
[368770142,1751356240695,-460.0,0.0001886,2]
[368770143,1751356240709,-491.9,0.0001886,2]
[368770144,1751356240719,-460.0,0.0001886,2]
[368770145,1751356240729,-460.0,0.0001886,2]
[368770146,1751356240738,-460.0,0.0001886,2]
[368770147,1751356240750,-460.0,0.0001886,2]
[368770148,1751356240760,-460.0,0.0001886,2]
[368770149,1751356240769,-460.0,0.0001886,2]
[368770150,1751356240779,-162.22,0.00018861,2]
[368770151,1751356240789,-460.0,0.00018861,2]
[368770152,1751356240800,-569.53,0.00018861,2]
[368770153,1751356240809,-469.73,0.00018861,2]
[368770154,1751356240819,-460.0,0.00018861,2]
[368770155,1751356240830,-460.0,0.00018861,2]
[368770156,1751356240840,-460.0,0.00018861,2]
[368770157,1751356240849,-460.0,0.00018861,2]
[368770158,1751356240858,-460.0,0.00018861,2]
[368770160,1751356240868,-460.0,0.00018861,2]
[368770161,1751356240878,-460.0,0.00018861,2]
[368770162,1751356240887,-460.0,0.00018861,2]
[368770163,1751356240897,-460.0,0.00018861,2]
[368770164,1751356240906,-460.0,0.00018861,2]
[368770165,1751356240916,-460.0,0.00018861,2]
[368770166,1751356240925,-1199.61,0.00018861,2]
[368770167,1751356240935,-460.0,0.00018861,2]
[368770168,1751356240945,-460.0,0.00018861,2]
[368770170,1751356240955,-460.0,0.00018861,2]
[368770171,1751356240965,-460.0,0.00018861,2]
[368770172,1751356240975,-460.0,0.00018861,2]
[368770173,1751356240986,-460.0,0.00018861,2]
[368770174,1751356240996,-460.0,0.00018861,2]
[368770175,1751356241007,-325.55,0.00018861,2]
[368770176,1751356241016,-460.0,0.00018861,2]
[368770177,1751356241026,-460.0,0.00018862,2]
[368770179,1751356241036,-460.0,0.00018862,2]
[368770180,1751356241047,-1439.0283322,0.000189,2]
[368770181,1751356241057,-1842.86,0.00018999,2]
[368770182,1751356241066,-1842.86,0.00018999,2]
[368770183,1751356241075,-1842.86,0.00018999,2]
[368770184,1751356241085,-1842.86,0.00018999,2]
[368770185,1751356241094,-1842.86,0.00018999,2]
[368770186,1751356241104,-383.97527795,0.00019,2]
[368770188,1751356241113,-207.4,0.0001902,2]
[368770189,1751356241122,-500.0,0.0001902,2]
[368770190,1751356241132,-500.0,0.0001902,2]
[368770191,1751356241141,-500.0,0.0001902,2]
[368770192,1751356241150,-500.0,0.0001902,2]
[368770193,1751356241159,-500.0,0.0001902,2]
[368770194,1751356241169,-500.0,0.0001902,2]
[368770195,1751356241178,-500.0,0.0001902,2]
[368770196,1751356241188,-151.0,0.0001902,2]
[368770197,1751356241197,-298.60925501,0.0001902,2]
[368770199,1751356241206,-690.642,0.0001902,2]
[368770200,1751356241217,-500.0,0.0001902,2]
[368770201,1751356241226,-500.0,0.0001902,2]
[368770202,1751356241235,-500.0,0.0001902,2]
[368770203,1751356241244,-500.0,0.0001902,2]
[368770204,1751356241256,-5000.0,0.0001902,2]
[368770205,1751356241265,-500.0,0.0001902,2]
[368770207,1751356241274,-500.0,0.0001902,2]
[368770208,1751356241284,-500.0,0.0001902,2]
[368770209,1751356241296,-500.0,0.0001902,2]
[368770210,1751356241305,-500.0,0.0001902,2]
[368770211,1751356241314,-500.0,0.0001902,2]
[368770212,1751356241324,-500.0,0.0001902,2]
[368770213,1751356241333,-500.0,0.0001902,2]
[368770215,1751356241343,-561.88688042,0.0001902,2]
[368770216,1751356241352,-243.73675996,0.00019021,2]
[368770217,1751356241361,-215.01728679,0.00019073,2]
[368770218,1751356241371,-160.0,0.00019073,2]
[368770219,1751356241380,-213.87551669,0.00019073,2]
[368770220,1751356241390,-230.32585361,0.00019073,2]
[368770221,1751356241399,-847.53272281,0.00019073,2]
[368770222,1751356241408,-160.0,0.00019073,2]
[368770224,1751356241418,-12571.40790328,0.00019073,2]
[368770225,1751356241427,-160.0,0.00019073,2]
[368770226,1751356241436,-837.20943635,0.00019073,2]
[368770227,1751356241446,-160.0,0.00019073,2]
[368770228,1751356241455,-716.195754,0.00019075,2]
[368770229,1751356241466,-515.1978142,0.00019126,2]
[368770230,1751356241475,-744.62095778,0.0001913,2]
[368770231,1751356241484,-460.0,0.00019133,2]
[368770233,1751356241494,-460.0,0.00019133,2]
[368770234,1751356241503,-460.0,0.00019133,2]
[368770235,1751356241514,-460.0,0.00019133,2]
[368770236,1751356241524,-735.02,0.00019133,2]
[368770237,1751356241535,-460.0,0.00019133,2]
[368770238,1751356241544,-656.58,0.00019133,2]
[368770240,1751356241554,-1538.26,0.00019133,2]
[368770241,1751356241563,-478.66,0.00019133,2]
[368770242,1751356241573,-517.42,0.00019133,2]
[368770243,1751356241583,-460.0,0.00019133,2]
[368770245,1751356241680,-460.0,0.00019133,2]
[368770246,1751356241691,-1842.86,0.00019134,2]
[368770247,1751356241705,-460.0,0.00019134,2]
[368770249,1751356241714,-1088.23,0.00019134,2]
[368770250,1751356241724,-460.0,0.00019134,2]
[368770251,1751356241734,-460.0,0.00019134,2]
[368770252,1751356241746,-460.0,0.00019134,2]
[368770253,1751356241756,-460.0,0.00019134,2]
[368770254,1751356241766,-834.6,0.00019134,2]
[368770255,1751356241776,-681.96,0.00019134,2]
[368770257,1751356241786,-880.67,0.00019134,2]
[368770258,1751356241797,-460.0,0.00019134,2]
[368770259,1751356241807,-460.0,0.00019134,2]
[368770260,1751356241816,-502.77,0.00019134,2]
[368770261,1751356241826,-460.0,0.00019134,2]
[368770262,1751356241836,-571.71,0.00019134,2]
[368770263,1751356241846,-489.47,0.00019134,2]
[368770264,1751356241856,-460.0,0.00019134,2]
[368770266,1751356241865,-460.0,0.00019134,2]
[368770267,1751356241874,-460.0,0.00019134,2]
[368770268,1751356241883,-460.0,0.00019134,2]
[368770269,1751356241893,-460.0,0.00019134,2]
[368770270,1751356241902,-491.9,0.00019134,2]
[368770271,1751356241912,-460.0,0.00019134,2]
[368770272,1751356241922,-460.0,0.00019134,2]
[368770273,1751356241932,-564.83,0.00019134,2]
[368770274,1751356241941,-460.0,0.00019134,2]
[368770275,1751356241950,-460.0,0.00019134,2]
[368770276,1751356241960,-460.0,0.00019134,2]
[368770277,1751356241969,-452.01,0.00019135,2]
[368770278,1751356241979,-460.0,0.00019135,2]
[368770279,1751356241989,-460.0,0.00019135,2]
[368770280,1751356241998,-460.0,0.00019135,2]
[368770281,1751356242007,-460.0,0.00019135,2]
[368770282,1751356242017,-532.02,0.00019135,2]
[368770283,1751356242027,-460.0,0.00019135,2]
[368770284,1751356242036,-460.0,0.00019135,2]
[368770285,1751356242046,-1199.61,0.00019135,2]
[368770286,1751356242055,-460.0,0.00019135,2]
[368770287,1751356242065,-460.0,0.00019135,2]
[368770288,1751356242075,-460.0,0.00019135,2]
[368770289,1751356242084,-460.0,0.00019135,2]
[368770290,1751356242094,-460.0,0.00019135,2]
[368770291,1751356242104,-460.0,0.00019135,2]
[368770292,1751356242114,-460.0,0.00019135,2]
[368770293,1751356242123,-460.0,0.00019136,2]
[368770294,1751356242133,-460.0,0.00019136,2]
[368770295,1751356242142,-383.97527768,0.00019141,2]
[368770296,1751356242152,-264.375052,0.00019178,2]
[368770297,1751356242161,-84249.84594083,0.00019329,2]
[368770298,1751356242172,-383.97527768,0.00019383,2]
[368770299,1751356242182,-460.0,0.00019407,2]
[368770301,1751356242191,-735.02,0.00019407,2]
[368770302,1751356242200,-460.0,0.00019407,2]
[368770303,1751356242210,-656.58,0.00019407,2]
[368770304,1751356242219,-1538.26,0.00019407,2]
[368770305,1751356242229,-478.66,0.00019407,2]
[368770306,1751356242238,-517.42,0.00019407,2]
[368770307,1751356242248,-351.9,0.00019407,2]
[368770308,1751356242258,-460.0,0.00019407,2]
[368770309,1751356242268,-1088.23,0.00019408,2]
[368770311,1751356242278,-460.0,0.00019408,2]
[368770312,1751356242288,-460.0,0.00019408,2]
[368770313,1751356242301,-460.0,0.00019408,2]
[368770314,1751356242310,-460.0,0.00019408,2]
[368770315,1751356242319,-834.6,0.00019408,2]
[368770316,1751356242329,-681.96,0.00019408,2]
[368770317,1751356242338,-880.67,0.00019408,2]
[368770319,1751356242347,-211.31,0.00019408,2]
[368770320,1751356242358,-324.43,0.00019408,2]
[368770321,1751356242369,-502.77,0.00019408,2]
[368770322,1751356242379,-460.0,0.00019408,2]
[368770323,1751356242389,-571.71,0.00019408,2]
[368770324,1751356242399,-460.0,0.00019408,2]
[368770325,1751356242409,-583.54,0.00019408,2]
[368770327,1751356242418,-393.25,0.00019408,2]
[368770328,1751356242427,-297.06,0.00019408,2]
[368770329,1751356242437,-491.9,0.00019408,2]
[368770330,1751356242448,-503.47,0.00019408,2]
[368770331,1751356242459,-460.0,0.00019408,2]
[368770332,1751356242469,-434.5,0.00019408,2]
[368770333,1751356242480,-460.0,0.00019409,2]
[368770335,1751356242490,-310.17950622,0.00019409,2]
[368770336,1751356242500,-460.0,0.00019409,2]
[368770337,1751356242509,-460.0,0.00019409,2]
[368770338,1751356242520,-164.32,0.00019409,2]
[368770339,1751356242530,-460.0,0.00019409,2]
[368770340,1751356242540,-1199.61,0.00019409,2]
[368770341,1751356242551,-460.0,0.00019409,2]
[368770342,1751356242561,-460.0,0.00019409,2]
[368770344,1751356242570,-460.0,0.00019409,2]
[368770345,1751356242581,-460.0,0.00019409,2]
[368770346,1751356242592,-460.0,0.00019409,2]
[368770347,1751356242604,-460.0,0.00019409,2]
[368770348,1751356242615,-460.0,0.00019409,2]
[368770349,1751356242625,-460.0,0.0001941,2]
[368770351,1751356242635,-151.41,0.0001941,2]
[368770352,1751356242645,-5000.0,0.00019568,2]
[368770353,1751356242654,-151.0,0.00019568,2]
[368770354,1751356242664,-151.0,0.00019568,2]
[368770355,1751356242673,-151.0,0.00019568,2]
[368770356,1751356242682,-383.97527768,0.00019624,2]
[368770357,1751356242691,-3691.82,0.00019672,3]
[368770358,1751356242701,-1845.9,0.00019672,3]
[368770360,1751356242714,-922.96,0.00019672,3]
[368770361,1751356242723,-461.48,0.00019672,3]
[368770362,1751356242733,-847.53272281,0.00019672,3]
[368770363,1751356242744,-460.0,0.00019681,2]
[368770364,1751356242754,-735.02,0.00019681,2]
[368770365,1751356242763,-460.0,0.00019681,2]
[368770366,1751356242773,-656.58,0.00019681,2]
[368770368,1751356242783,-1538.26,0.00019681,2]
[368770369,1751356242792,-478.66,0.00019681,2]
[368770370,1751356242802,-517.42,0.00019681,2]
[368770371,1751356242811,-460.0,0.00019681,2]
[368770372,1751356242820,-1842.86,0.00019682,2]
[368770373,1751356242830,-1088.23,0.00019682,2]
[368770374,1751356242839,-460.0,0.00019682,2]
[368770375,1751356242849,-287.83,0.00019682,2]
[368770376,1751356242859,-460.0,0.00019682,2]
[368770377,1751356242868,-460.0,0.00019682,2]
[368770379,1751356242878,-834.6,0.00019682,2]
[368770380,1751356242888,-681.96,0.00019682,2]
[368770381,1751356242897,-880.67,0.00019682,2]
[368770382,1751356242907,-502.77,0.00019682,2]
[368770383,1751356242916,-460.0,0.00019682,2]
[368770384,1751356242930,-571.71,0.00019682,2]
[368770385,1751356242941,-491.9,0.00019682,2]
[368770387,1751356242950,-460.0,0.00019682,2]
[368770388,1751356242959,-460.0,0.00019683,2]
[368770389,1751356242969,-574.57,0.00019683,2]
[368770390,1751356242979,-346.18511559,0.00019683,2]
[368770391,1751356242990,-264.16,0.00019683,2]
[368770392,1751356243001,-1199.61,0.00019683,2]
[368770393,1751356243011,-460.0,0.00019683,2]
[368770395,1751356243021,-460.0,0.00019683,2]
[368770396,1751356243031,-460.0,0.00019683,2]
[368770397,1751356243041,-249.26,0.00019683,2]
[368770398,1751356243051,-460.0,0.00019683,2]
[368770399,1751356243061,-460.0,0.00019683,2]
[368770400,1751356243071,-460.0,0.00019683,2]
[368770401,1751356243082,-151.0,0.00019684,2]
[368770402,1751356243092,-151.0,0.00019684,2]
[368770404,1751356243102,-151.0,0.00019684,2]
[368770405,1751356243112,-151.0,0.00019684,2]
[368770406,1751356243121,-273.256924,0.00019684,2]
[368770407,1751356243131,-151.0,0.00019684,2]
[368770408,1751356243140,-151.0,0.00019684,2]
[368770409,1751356243149,-359.007035,0.00019684,2]
[368770410,1751356243159,-359.007035,0.00019684,2]
[368770411,1751356243168,-151.0,0.00019684,2]
[368770413,1751356243177,-151.0,0.00019684,2]
[368770414,1751356243187,-415.0,0.00019765,2]
[368770415,1751356243197,-415.0,0.00019771,2]
[368770416,1751356243207,-197.17,0.000198,5]
[368770417,1751356243216,-213.87551669,0.00019846,3]
[368770418,1751356243226,-151.0,0.00019846,2]
[368770419,1751356243236,-151.0,0.00019846,2]
[368770420,1751356243245,-151.0,0.00019846,2]
[368770422,1751356243255,-515.1978142,0.00019863,2]
[368770424,1751356243266,-383.97527768,0.00019866,2]
[368770427,1751356243276,-151.46057748,0.00019917,2]
[368770429,1751356243286,-500.0,0.00019917,2]
[368770431,1751356243299,-151.0,0.00019917,2]
[368770433,1751356243309,-151.0,0.00019917,2]
[368770435,1751356243320,-151.0,0.00019917,2]
[368770437,1751356243330,-500.0,0.00019917,2]
[368770439,1751356243339,-151.0,0.00019917,2]
[368770440,1751356243349,-151.0,0.00019917,2]
[368770441,1751356243360,-151.26659168,0.00019917,2]
[368770442,1751356243370,-152.11756079,0.00019917,2]
[368770443,1751356243379,-208.01104724,0.00019917,2]
[368770444,1751356243389,-151.0,0.00019917,2]
[368770445,1751356243399,-500.0,0.00019944,2]
[368770446,1751356243408,-296.39966653,0.00019944,2]
[368770447,1751356243418,-500.0,0.00019944,2]
[368770448,1751356243427,-151.0,0.00019944,2]
[368770449,1751356243437,-151.0,0.00019944,2]
[368770450,1751356243447,-460.0,0.00019955,2]
[368770451,1751356243456,-735.02,0.00019955,2]
[368770452,1751356243465,-183.33,0.00019955,2]
[368770453,1751356243474,-656.58,0.00019955,2]
[368770454,1751356243484,-1538.26,0.00019955,2]
[368770455,1751356243493,-478.66,0.00019955,2]
[368770456,1751356243502,-517.42,0.00019955,2]
[368770458,1751356243512,-460.0,0.00019955,2]
[368770460,1751356243521,-1088.23,0.00019956,2]
[368770462,1751356243531,-460.0,0.00019956,2]
[368770464,1751356243541,-314.22,0.00019956,2]
[368770466,1751356243552,-460.0,0.00019956,2]
[368770468,1751356243561,-834.6,0.00019956,2]
[368770470,1751356243571,-681.96,0.00019956,2]
[368770472,1751356243580,-880.67,0.00019956,2]
[368770475,1751356243590,-502.77,0.00019956,2]
[368770477,1751356243599,-460.0,0.00019956,2]
[368770479,1751356243609,-571.71,0.00019956,2]
[368770481,1751356243618,-491.9,0.00019956,2]
[368770483,1751356243628,-460.0,0.00019956,2]
[368770485,1751356243637,-460.0,0.00019957,2]
[368770487,1751356243646,-151.0,0.00019957,2]
[368770489,1751356243654,-151.0,0.00019957,2]
[368770490,1751356243664,-1199.61,0.00019957,2]
[368770492,1751356243673,-460.0,0.00019957,2]
[368770494,1751356243683,-460.0,0.00019957,2]
[368770497,1751356243693,-201.67,0.00019957,2]
[368770498,1751356243702,-460.0,0.00019957,2]
[368770501,1751356243715,-460.0,0.00019957,2]
[368770502,1751356243725,-460.0,0.00019957,2]
[368770505,1751356243734,-500.0,0.00019972,2]
[368770506,1751356243745,-245.0,0.00019972,2]
[368770507,1751356243755,-151.0,0.00019972,2]
[368770508,1751356243765,-151.0,0.00019972,2]
[368770509,1751356243774,-500.0,0.00019999,2]
[368770510,1751356243785,-292.0,0.00019999,2]
[368770511,1751356243796,-294.44264362,0.00019999,2]
[368770512,1751356243806,-500.0,0.00020027,2]
[368770514,1751356243816,-154.72880771,0.00020027,2]
[368770516,1751356243825,-151.0,0.00020027,2]
[368770518,1751356243835,-151.0,0.00020027,2]
[368770519,1751356243845,-151.0,0.00020027,2]
[368770521,1751356243854,-151.0,0.00020027,2]
[368770523,1751356243864,-151.45632971,0.00020027,2]
[368770524,1751356243873,-151.0,0.00020027,2]
[368770526,1751356243882,-500.0,0.00020054,2]
[368770528,1751356243892,-151.0,0.00020054,2]
[368770529,1751356243901,-151.0,0.00020054,2]
[368770531,1751356243911,-500.0,0.00020081,2]
[368770533,1751356243921,-292.8455064,0.00020082,2]
[368770534,1751356243930,-198.0,0.00020082,2]
[368770536,1751356243941,-383.97527768,0.00020107,2]
[368770544,1751356243950,-500.0,0.00020109,2]
[368770545,1751356244049,-500.0,0.00020136,2]
[368770547,1751356244059,-242.0,0.00020164,2]
[368770548,1751356244068,-1842.86,0.00020229,2]
[368770549,1751356244078,-460.0,0.00020229,2]
[368770550,1751356244088,-735.02,0.00020229,2]
[368770551,1751356244099,-656.58,0.00020229,2]
[368770552,1751356244108,-1538.26,0.00020229,2]
[368770553,1751356244118,-478.66,0.00020229,2]
[368770555,1751356244127,-517.42,0.00020229,2]
[368770556,1751356244138,-590.52601818,0.00020229,2]
[368770557,1751356244147,-1088.23,0.0002023,2]
[368770558,1751356244156,-460.0,0.0002023,2]
[368770559,1751356244166,-460.0,0.0002023,2]
[368770560,1751356244178,-834.6,0.0002023,2]
[368770561,1751356244188,-681.96,0.0002023,2]
[368770563,1751356244197,-880.67,0.0002023,2]
[368770564,1751356244208,-502.77,0.0002023,2]
[368770565,1751356244218,-460.0,0.0002023,2]
[368770566,1751356244230,-571.71,0.0002023,2]
[368770567,1751356244240,-491.9,0.0002023,2]
[368770568,1751356244249,-460.0,0.0002023,2]
[368770570,1751356244259,-223.78,0.00020231,2]
[368770571,1751356244268,-1199.61,0.00020231,2]
[368770572,1751356244278,-460.0,0.00020231,2]
[368770573,1751356244289,-280.33,0.00020231,2]
[368770574,1751356244299,-205.96,0.00020231,2]
[368770575,1751356244308,-460.0,0.00020231,2]
[368770576,1751356244319,-460.0,0.00020231,2]
[368770578,1751356244328,-415.0,0.00020256,2]
[368770579,1751356244337,-168.0,0.00020336,2]
[368770580,1751356244347,-415.0,0.00020347,2]
[368770581,1751356244357,-383.97527768,0.00020348,3]
[368770582,1751356244366,-215.0738,0.00020389,2]
[368770583,1751356244376,-415.0,0.00020451,2]
[368770584,1751356244385,-416.89,0.00020503,2]
[368770585,1751356244394,-735.02,0.00020503,2]
[368770587,1751356244404,-656.58,0.00020503,2]
[368770588,1751356244413,-1538.26,0.00020503,2]
[368770589,1751356244423,-478.66,0.00020503,2]
[368770590,1751356244433,-517.42,0.00020503,2]
[368770591,1751356244443,-1088.23,0.00020504,2]
[368770592,1751356244452,-345.80697311,0.00020504,2]
[368770593,1751356244462,-460.0,0.00020504,2]
[368770595,1751356244471,-834.6,0.00020504,2]
[368770596,1751356244480,-681.96,0.00020504,2]
[368770597,1751356244490,-880.67,0.00020504,2]
[368770598,1751356244500,-502.77,0.00020504,2]
[368770599,1751356244509,-460.0,0.00020504,2]
[368770600,1751356244519,-571.71,0.00020504,2]
[368770601,1751356244528,-491.9,0.00020504,2]
[368770603,1751356244538,-460.0,0.00020504,2]
[368770604,1751356244548,-1199.61,0.00020505,2]
[368770605,1751356244558,-460.0,0.00020505,2]
[368770606,1751356244567,-460.0,0.00020505,2]
[368770607,1751356244577,-460.0,0.00020505,2]
[368770608,1751356244587,-168.74373069,0.00020569,2]
[368770609,1751356244596,-4000.0,0.00020582,4]
[368770611,1751356244606,-383.97527768,0.0002059,3]
[368770612,1751356244615,-515.1978142,0.00020601,2]
[368770613,1751356244625,-500.0,0.00020669,2]
[368770614,1751356244635,-500.70631354,0.00020669,2]
[368770615,1751356244645,-500.0,0.00020669,2]
[368770616,1751356244654,-363.726,0.00020677,2]
[368770617,1751356244663,-500.43541712,0.00020777,2]
[368770618,1751356244673,-500.0,0.00020777,2]
[368770620,1751356244682,-500.0,0.00020777,2]
[368770621,1751356244692,-441.94601656,0.00020777,2]
[368770622,1751356244701,-1842.86,0.00020777,2]
[368770623,1751356244715,-735.02,0.00020777,2]
[368770624,1751356244724,-656.58,0.00020777,2]
[368770625,1751356244734,-1538.26,0.00020777,2]
[368770627,1751356244743,-478.66,0.00020777,2]